[Event "Reykjavik Open 2025"]
[Site "Reykjavik, Iceland"]
[Date "2025.04.10"]
[Round "2.9"]
[White "Gorshtein, Ido"]
[Black "Bhagat Kush"]
[Result "1-0"]
[WhiteElo "2557"]
[WhiteTitle "GM"]
[WhiteFideId "2815532"]
[BlackElo "2301"]
[BlackTitle "FM"]
[BlackFideId "46672940"]
[TimeControl "90+30 +30 after 40 moves"]
[Variant "Standard"]
[ECO "E71"]
[Opening "King's Indian Defense: Makogonov Variation"]
[StudyName "Round 2"]
1. d4 { [%clk 1:30:58] } 1... Nf6 { [%clk 1:20:14] } 2. c4 { [%clk 1:31:21] } 2... g6 { [%clk 1:20:22] } 3. Nc3 { [%clk 1:31:44] } 3... Bg7 { [%clk 1:20:48] } 4. e4 { [%clk 1:32:10] } 4... d6 { [%clk 1:21:12] } 5. h3 { [%clk 1:32:35] } 5... O-O { [%clk 1:21:21] } 6. Be3 { [%clk 1:33:00] } 6... Nbd7 { [%clk 1:21:22] } 7. Qc2 { [%clk 1:33:11] } 7... e5 { [%clk 1:18:53] } 8. d5 { [%clk 1:33:34] } 8... a5 { [%clk 1:17:24] } 9. Nf3 { [%clk 1:28:46] } 9... Nc5 { [%clk 1:17:33] } 10. Be2 { [%clk 1:26:35] } 10... Nh5 { [%clk 1:03:05] } 11. Bxc5 { [%clk 1:26:57] } 11... dxc5 { [%clk 1:03:24] } 12. O-O-O { [%clk 1:27:18] } 12... Nf4 { [%clk 0:54:10] } 13. Bf1 { [%clk 1:27:39] } 13... f5 { [%clk 0:53:37] } 14. Kb1 { [%clk 1:27:57] } 14... Qe7 { [%clk 0:49:10] } 15. Nd2 { [%clk 1:20:26] } 15... Ra6 { [%clk 0:47:25] } 16. h4 { [%clk 1:18:11] } 16... Bd7 { [%clk 0:42:19] } 17. Re1 { [%clk 1:01:51] } 17... Nh5 { [%clk 0:40:16] } 18. Be2 { [%clk 1:00:33] } 18... f4 { [%clk 0:36:21] } 19. Nb5 { [%clk 0:55:01] } 19... Bc8 { [%clk 0:31:03] } 20. Nc3 { [%clk 0:49:13] } 20... Bd7 { [%clk 0:30:10] } 21. Nf3 { [%clk 0:44:20] } 21... h6 { [%clk 0:28:29] } 22. Reg1 { [%clk 0:42:05] } 22... Raf6 { [%clk 0:12:39] } 23. Ne1 { [%clk 0:40:06] } 23... b6 { [%clk 0:11:30] } 24. Qd1 { [%clk 0:39:53] } 24... Qf7 { [%clk 0:10:29] } 25. Bg4 { [%clk 0:38:56] } 25... Rd6 { [%clk 0:10:33] } 26. Nd3 { [%clk 0:37:51] } 26... Re8 { [%clk 0:08:26] } 27. Bxd7 { [%clk 0:32:28] } 27... Rxd7 { [%clk 0:08:49] } 28. g4 { [%clk 0:30:45] } 28... fxg3 { [%clk 0:06:21] } 29. fxg3 { [%clk 0:31:08] } 29... Rf8 { [%clk 0:05:40] } 30. g4 { [%clk 0:25:07] } 30... Nf4 { [%clk 0:05:53] } 31. g5 { [%clk 0:17:23] } 31... Nxd3 { [%clk 0:05:52] } 32. Qxd3 { [%clk 0:17:44] } 32... h5 { [%clk 0:06:17] } 33. Qh3 { [%clk 0:12:59] } 33... Qe8 { [%clk 0:05:47] } 34. Rf1 { [%clk 0:12:06] } 34... Rxf1+ { [%clk 0:04:52] } 35. Rxf1 { [%clk 0:12:30] } 35... Rf7 { [%clk 0:05:18] } 36. Rxf7 { [%clk 0:07:11] } 36... Qxf7 { [%clk 0:05:28] } 37. Qe6 { [%clk 0:06:26] } 37... Bf8 { [%clk 0:05:16] } 38. Qxf7+ { [%clk 0:05:34] } 38... Kxf7 { [%clk 0:05:44] } 39. Nb5 { [%clk 0:04:37] } 39... Be7 { [%clk 0:04:29] } 40. Kc2 { [%clk 0:04:13] } 40... Bd8 { [%clk 0:03:52] } 41. Kd3 { [%clk 0:01:27] } 41... Ke8 { [%clk 0:00:54] } 42. Na7 { [%clk 0:30:20] } 42... Be7 { [%clk 0:28:22] } 43. Nc6 { [%clk 0:30:44] } 43... Bd6 { [%clk 0:28:48] } 44. Kc2 { [%clk 0:30:30] } 44... a4 { [%clk 0:21:54] } 45. a3 { [%clk 0:30:06] } 45... Kd7 { [%clk 0:21:54] } 46. b3 { [%clk 0:30:26] } 46... Kc8 { [%clk 0:21:04] } 47. bxa4 { [%clk 0:30:49] } 47... Kb7 { [%clk 0:21:31] } 48. Kb2 { [%clk 0:29:18] } 48... Ka6 { [%clk 0:21:41] } 49. Kb3 { [%clk 0:29:43] } 49... Kb7 { [%clk 0:22:07] } 50. a5 { [%clk 0:29:56] } 50... bxa5 { [%clk 0:22:16] } 51. Nxa5+ { [%clk 0:30:19] } 51... Ka6 { [%clk 0:22:38] } 52. Nc6 { [%clk 0:30:44] } 52... Kb6 { [%clk 0:23:02] } 53. a4 { [%clk 0:30:54] } 53... Ka6 { [%clk 0:23:25] } 54. a5 { [%clk 0:31:18] } 54... Kb7 { [%clk 0:23:51] } 55. Ka3 { [%clk 0:31:30] } 1-0

[Event "Reykjavik Open 2025"]
[Site "Reykjavik, Iceland"]
[Date "2025.04.10"]
[Round "2.10"]
[White "Llari, Marc"]
[Black "Maze, Sebastien"]
[Result "1/2-1/2"]
[WhiteElo "2299"]
[WhiteTitle "CM"]
[WhiteFideId "651044269"]
[BlackElo "2557"]
[BlackTitle "GM"]
[BlackFideId "613762"]
[TimeControl "90+30 +30 after 40 moves"]
[Variant "Standard"]
[ECO "B15"]
[Opening "Caro-Kann Defense: Tartakower Variation"]
[StudyName "Round 2"]
1. e4 { [%clk 1:30:57] } 1... c6 { [%clk 1:30:56] } 2. d4 { [%clk 1:31:20] } 2... d5 { [%clk 1:31:23] } 3. Nc3 { [%clk 1:31:32] } 3... dxe4 { [%clk 1:31:48] } 4. Nxe4 { [%clk 1:31:53] } 4... Nf6 { [%clk 1:32:16] } 5. Nxf6+ { [%clk 1:32:11] } 5... exf6 { [%clk 1:32:43] } 6. c3 { [%clk 1:32:32] } 6... Bd6 { [%clk 1:33:07] } 7. Bd3 { [%clk 1:32:54] } 7... O-O { [%clk 1:33:09] } 8. Ne2 { [%clk 1:33:18] } 8... Re8 { [%clk 1:33:16] } 9. O-O { [%clk 1:33:36] } 9... Nd7 { [%clk 1:33:27] } 10. Ng3 { [%clk 1:33:43] } 10... g6 { [%clk 1:32:35] } 11. Ne4 { [%clk 1:29:54] } 11... Bc7 { [%clk 1:29:23] } 12. Re1 { [%clk 1:25:07] } 12... Re7 { [%clk 1:08:32] } 13. g3 { [%clk 1:00:27] } 13... f5 { [%clk 0:54:26] } 14. Ng5 { [%clk 0:58:35] } 14... Nf6 { [%clk 0:47:27] } 15. Rxe7 { [%clk 0:54:36] } 15... Qxe7 { [%clk 0:47:55] } 16. Qe2 { [%clk 0:54:57] } 16... Qxe2 { [%clk 0:47:15] } 17. Bxe2 { [%clk 0:55:16] } 17... Bd7 { [%clk 0:43:18] } 18. Bc4 { [%clk 0:54:46] } 18... Nd5 { [%clk 0:41:14] } 19. Bd2 { [%clk 0:53:06] } 19... f6 { [%clk 0:40:53] } 20. Nf3 { [%clk 0:53:16] } 20... Be6 { [%clk 0:40:17] } 21. Ne1 { [%clk 0:52:26] } 21... Bf7 { [%clk 0:32:01] } 22. Nd3 { [%clk 0:52:19] } 22... Rd8 { [%clk 0:32:15] } 23. Re1 { [%clk 0:51:52] } 23... Bd6 { [%clk 0:32:14] } 24. h4 { [%clk 0:49:22] } 24... Kg7 { [%clk 0:31:51] } 25. Bb3 { [%clk 0:45:52] } 25... Rd7 { [%clk 0:29:07] } 26. Bc2 { [%clk 0:36:25] } 26... h6 { [%clk 0:25:09] } 27. a4 { [%clk 0:32:56] } 27... a5 { [%clk 0:17:01] } 28. h5 { [%clk 0:23:51] } 28... f4 { [%clk 0:11:59] } 1/2-1/2

[Event "Reykjavik Open 2025"]
[Site "Reykjavik, Iceland"]
[Date "2025.04.10"]
[Round "2.11"]
[White "Adhiban, B."]
[Black "Golis, Wiktor"]
[Result "1-0"]
[WhiteElo "2554"]
[WhiteTitle "GM"]
[WhiteFideId "5018471"]
[BlackElo "2293"]
[BlackTitle "FM"]
[BlackFideId "21055874"]
[TimeControl "90+30 +30 after 40 moves"]
[Variant "Standard"]
[ECO "D61"]
[Opening "Queen's Gambit Declined: Orthodox Defense, Rubinstein Variation"]
[StudyName "Round 2"]
1. c4 { [%clk 1:30:56] } 1... e6 { [%clk 1:30:20] } 2. Nc3 { [%clk 1:31:23] } 2... d5 { [%clk 1:30:40] } 3. d4 { [%clk 1:31:45] } 3... Nf6 { [%clk 1:30:53] } 4. Bg5 { [%clk 1:31:47] } 4... Be7 { [%clk 1:27:06] } 5. e3 { [%clk 1:31:21] } 5... O-O { [%clk 1:27:10] } 6. Nf3 { [%clk 1:31:31] } 6... Nbd7 { [%clk 1:20:22] } 7. Qc2 { [%clk 1:31:08] } 7... b6 { [%clk 1:17:58] } 8. cxd5 { [%clk 1:26:57] } 8... exd5 { [%clk 1:16:07] } 9. Bd3 { [%clk 1:25:33] } 9... Bb7 { [%clk 1:15:28] } 10. O-O { [%clk 1:25:58] } 10... h6 { [%clk 1:10:45] } 11. Bf4 { [%clk 1:23:12] } 11... c5 { [%clk 1:06:52] } 12. Rfd1 { [%clk 1:15:58] } 12... c4 { [%clk 1:00:43] } 13. Bf5 { [%clk 1:15:58] } 13... a6 { [%clk 0:53:01] } 14. a4 { [%clk 0:50:32] } 14... Ne8 { [%clk 0:41:59] } 15. b3 { [%clk 0:44:45] } 15... Bd6 { [%clk 0:29:29] } 16. Ne5 { [%clk 0:41:05] } 16... Ndf6 { [%clk 0:28:49] } 17. bxc4 { [%clk 0:39:13] } 17... dxc4 { [%clk 0:29:14] } 18. Rab1 { [%clk 0:38:01] } 18... Nh5 { [%clk 0:25:43] } 19. Bg3 { [%clk 0:35:57] } 19... Nxg3 { [%clk 0:18:51] } 20. hxg3 { [%clk 0:36:25] } 20... Bc7 { [%clk 0:06:13] } 21. Nd7 { [%clk 0:31:24] } 21... Nd6 { [%clk 0:06:35] } 22. Nxf8 { [%clk 0:31:40] } 22... Kxf8 { [%clk 0:06:54] } 23. Bg4 { [%clk 0:31:50] } 23... Qg5 { [%clk 0:06:16] } 24. Bf3 { [%clk 0:30:41] } 24... Bxf3 { [%clk 0:05:54] } 25. gxf3 { [%clk 0:31:09] } 25... b5 { [%clk 0:04:54] } 26. f4 { [%clk 0:28:38] } 1-0

[Event "Reykjavik Open 2025"]
[Site "Reykjavik, Iceland"]
[Date "2025.04.10"]
[Round "2.12"]
[White "Amar, Elham"]
[Black "Schouten, Mathias Lind"]
[Result "1-0"]
[WhiteElo "2546"]
[WhiteTitle "GM"]
[WhiteFideId "1533533"]
[BlackElo "2279"]
[BlackFideId "1532790"]
[TimeControl "90+30 +30 after 40 moves"]
[Variant "Standard"]
[ECO "B40"]
[Opening "Sicilian Defense: Delayed Alapin Variation, with e6"]
[StudyName "Round 2"]
1. e4 { [%clk 1:30:55] } 1... c5 { [%clk 1:30:33] } 2. Nf3 { [%clk 1:31:14] } 2... e6 { [%clk 1:30:47] } 3. c3 { [%clk 1:30:59] } 3... d5 { [%clk 1:31:10] } 4. e5 { [%clk 1:31:22] } 4... d4 { [%clk 1:31:31] } 5. Na3 { [%clk 1:30:57] } 5... Nc6 { [%clk 1:31:48] } 6. Bd3 { [%clk 1:30:55] } 6... f5 { [%clk 1:32:10] } 7. exf6 { [%clk 1:28:22] } 7... Nxf6 { [%clk 1:32:33] } 8. O-O { [%clk 1:26:29] } 8... Bd6 { [%clk 1:32:47] } 9. Bb5 { [%clk 1:22:25] } 9... O-O { [%clk 1:31:46] } 10. Bxc6 { [%clk 1:12:57] } 10... bxc6 { [%clk 1:32:11] } 11. d3 { [%clk 1:13:08] } 11... Nd5 { [%clk 1:22:40] } 12. Bd2 { [%clk 1:00:12] } 12... Bf4 { [%clk 0:54:06] } 13. cxd4 { [%clk 0:52:37] } 13... cxd4 { [%clk 0:54:30] } 14. Nc4 { [%clk 0:51:40] } 14... c5 { [%clk 0:44:38] } 15. g3 { [%clk 0:41:15] } 15... Bb7 { [%clk 0:29:23] } 16. Qe2 { [%clk 0:41:40] } 16... Bxd2 { [%clk 0:28:10] } 17. Nfxd2 { [%clk 0:40:39] } 17... Nb4 { [%clk 0:25:20] } 18. a3 { [%clk 0:37:21] } 18... Qd5 { [%clk 0:25:42] } 19. f3 { [%clk 0:37:45] } 19... Nc6 { [%clk 0:25:38] } 20. Rac1 { [%clk 0:36:49] } 20... Nb8 { [%clk 0:15:38] } 21. Ne5 { [%clk 0:24:23] } 21... Na6 { [%clk 0:11:12] } 22. Ndc4 { [%clk 0:22:41] } 22... Rae8 { [%clk 0:10:11] } 23. Nd2 { [%clk 0:18:50] } 23... Re7 { [%clk 0:10:25] } 24. Nec4 { [%clk 0:18:54] } 24... Nb8 { [%clk 0:09:47] } 25. Ne4 { [%clk 0:18:19] } 25... Nd7 { [%clk 0:09:54] } 26. Rc2 { [%clk 0:16:51] } 26... Ba6 { [%clk 0:09:44] } 27. f4 { [%clk 0:13:30] } 27... Rb8 { [%clk 0:09:41] } 28. Rfc1 { [%clk 0:10:46] } 28... Rb3 { [%clk 0:06:22] } 29. Ned2 { [%clk 0:07:51] } 29... Rb8 { [%clk 0:06:03] } 30. Ne4 { [%clk 0:05:39] } 30... Rb3 { [%clk 0:06:28] } 31. Ned2 { [%clk 0:04:32] } 31... Rb8 { [%clk 0:06:54] } 32. Qe4 { [%clk 0:04:47] } 32... Bb7 { [%clk 0:02:51] } 33. Na5 { [%clk 0:02:26] } 33... Ba8 { [%clk 0:02:52] } 34. Qxd5 { [%clk 0:02:30] } 34... exd5 { [%clk 0:03:00] } 35. Ndb3 { [%clk 0:02:04] } 35... Kf7 { [%clk 0:01:28] } 36. Nxc5 { [%clk 0:02:11] } 36... Nxc5 { [%clk 0:01:54] } 37. Rxc5 { [%clk 0:02:38] } 37... Rxb2 { [%clk 0:02:19] } 38. Rc7 { [%clk 0:02:38] } 38... Rd2 { [%clk 0:00:49] } 39. Rxe7+ { [%clk 0:01:59] } 39... Kxe7 { [%clk 0:01:15] } 40. Rc8 { [%clk 0:02:04] } 40... Rxd3 { [%clk 0:01:07] } 41. Rxa8 { [%clk 0:02:31] } 41... Ke6 { [%clk 0:13:33] } 42. Nc6 { [%clk 0:29:40] } 42... Kd6 { [%clk 0:08:44] } 43. Nxa7 { [%clk 0:28:20] } 43... Kc5 { [%clk 0:05:37] } 44. a4 { [%clk 0:28:38] } 44... Rb3 { [%clk 0:06:04] } 45. Rc8+ { [%clk 0:28:27] } 45... Kb4 { [%clk 0:06:20] } 46. Nc6+ { [%clk 0:28:49] } 46... Kxa4 { [%clk 0:06:48] } 47. Ra8+ { [%clk 0:29:14] } 1-0

[Event "Reykjavik Open 2025"]
[Site "Reykjavik, Iceland"]
[Date "2025.04.10"]
[Round "2.13"]
[White "Stefansson, Vignir Vatnar"]
[Black "Nayak Rajesh"]
[Result "1-0"]
[WhiteElo "2536"]
[WhiteTitle "GM"]
[WhiteFideId "2308649"]
[BlackElo "2277"]
[BlackTitle "FM"]
[BlackFideId "35017152"]
[TimeControl "90+30 +30 after 40 moves"]
[Variant "Standard"]
[ECO "E04"]
[Opening "Catalan Opening: Open Defense"]
[StudyName "Round 2"]
1. d4 { [%clk 1:26:29] } 1... Nf6 { [%clk 1:30:16] } 2. c4 { [%clk 1:26:39] } 2... e6 { [%clk 1:30:37] } 3. Nf3 { [%clk 1:24:20] } 3... d5 { [%clk 1:30:56] } 4. g3 { [%clk 1:24:45] } 4... dxc4 { [%clk 1:30:41] } 5. Bg2 { [%clk 1:25:09] } 5... Nbd7 { [%clk 1:30:43] } 6. O-O { [%clk 1:19:42] } 6... c6 { [%clk 1:28:58] } 7. a4 { [%clk 1:17:59] } 7... b6 { [%clk 1:25:40] } 8. Nc3 { [%clk 1:11:52] } 8... Nd5 { [%clk 1:17:09] } 9. e4 { [%clk 1:06:35] } 9... Nxc3 { [%clk 1:15:38] } 10. bxc3 { [%clk 1:06:38] } 10... Be7 { [%clk 1:10:39] } 11. e5 { [%clk 0:59:37] } 11... Ba6 { [%clk 1:08:39] } 12. h4 { [%clk 0:53:00] } 12... Rc8 { [%clk 1:03:42] } 13. Ng5 { [%clk 0:53:03] } 13... h6 { [%clk 0:49:03] } 14. Ne4 { [%clk 0:51:57] } 14... c5 { [%clk 0:47:51] } 15. Qg4 { [%clk 0:49:48] } 15... Kf8 { [%clk 0:46:35] } 16. Be3 { [%clk 0:47:17] } 16... cxd4 { [%clk 0:44:16] } 17. Bxd4 { [%clk 0:47:34] } 17... Nc5 { [%clk 0:42:30] } 18. Bxc5 { [%clk 0:45:21] } 18... Bxc5 { [%clk 0:42:40] } 19. Rfd1 { [%clk 0:44:12] } 19... Qe7 { [%clk 0:36:32] } 20. Rd2 { [%clk 0:40:57] } 20... Rd8 { [%clk 0:34:48] } 21. Rxd8+ { [%clk 0:38:13] } 21... Qxd8 { [%clk 0:35:16] } 22. Rd1 { [%clk 0:38:13] } 22... Qe7 { [%clk 0:29:22] } 23. Nxc5 { [%clk 0:38:31] } 23... bxc5 { [%clk 0:29:43] } 24. Qe4 { [%clk 0:32:01] } 24... Qc7 { [%clk 0:26:16] } 25. Rd6 { [%clk 0:26:28] } 25... Bc8 { [%clk 0:26:26] } 26. Rc6 { [%clk 0:26:27] } 26... Qd8 { [%clk 0:25:37] } 27. Qxc4 { [%clk 0:26:39] } 27... g5 { [%clk 0:24:40] } 28. Qxc5+ { [%clk 0:25:16] } 28... Kg7 { [%clk 0:25:03] } 29. Qd6 { [%clk 0:22:43] } 29... gxh4 { [%clk 0:18:44] } 30. Qxd8 { [%clk 0:23:02] } 30... Rxd8 { [%clk 0:19:08] } 31. gxh4 { [%clk 0:23:24] } 31... Rd1+ { [%clk 0:17:45] } 32. Kh2 { [%clk 0:20:53] } 32... Bb7 { [%clk 0:17:50] } 33. Rc7 { [%clk 0:16:42] } 33... Bxg2 { [%clk 0:18:08] } 34. Kxg2 { [%clk 0:17:09] } 34... Rd5 { [%clk 0:17:08] } 35. Rxa7 { [%clk 0:13:55] } 35... Rxe5 { [%clk 0:17:03] } 36. Rc7 { [%clk 0:14:03] } 36... Re4 { [%clk 0:15:31] } 37. c4 { [%clk 0:14:05] } 37... Rxh4 { [%clk 0:15:56] } 38. a5 { [%clk 0:14:11] } 38... Kf6 { [%clk 0:10:42] } 39. a6 { [%clk 0:12:56] } 39... Rg4+ { [%clk 0:10:48] } 40. Kh3 { [%clk 0:12:18] } 40... Rg1 { [%clk 0:08:16] } 41. a7 { [%clk 0:12:36] } 41... Ra1 { [%clk 0:08:40] } 42. c5 { [%clk 0:12:52] } 42... Ke5 { [%clk 0:06:55] } 43. Rd7 { [%clk 0:13:06] } 43... f5 { [%clk 0:04:57] } 44. c6 { [%clk 0:13:17] } 44... Kf4 { [%clk 0:05:18] } 45. Kg2 { [%clk 0:13:12] } 1-0

[Event "Reykjavik Open 2025"]
[Site "Reykjavik, Iceland"]
[Date "2025.04.10"]
[Round "2.14"]
[White "Ronka, Erik"]
[Black "Kadric, Denis"]
[Result "1/2-1/2"]
[WhiteElo "2295"]
[WhiteTitle "FM"]
[WhiteFideId "505080"]
[BlackElo "2533"]
[BlackTitle "GM"]
[BlackFideId "14403803"]
[TimeControl "90+30 +30 after 40 moves"]
[Variant "Standard"]
[ECO "B00"]
[Opening "Pirc Defense"]
[StudyName "Round 2"]
1. e4 { [%clk 1:29:55] } 1... d6 { [%clk 1:30:55] } 2. d4 { [%clk 1:30:15] } 2... Nf6 { [%clk 1:31:23] } 3. Nc3 { [%clk 1:30:26] } 3... e5 { [%clk 1:31:49] } 4. dxe5 { [%clk 1:30:35] } 4... dxe5 { [%clk 1:32:15] } 5. Qxd8+ { [%clk 1:30:57] } 5... Kxd8 { [%clk 1:32:43] } 6. Bg5 { [%clk 1:31:09] } 6... Nd7 { [%clk 1:32:42] } 7. O-O-O { [%clk 1:24:10] } 7... c6 { [%clk 1:32:46] } 8. Bc4 { [%clk 1:23:16] } 8... Ke8 { [%clk 1:33:09] } 9. Nf3 { [%clk 1:22:35] } 9... Bb4 { [%clk 1:27:02] } 10. a3 { [%clk 1:16:37] } 10... Ba5 { [%clk 1:16:00] } 11. h3 { [%clk 1:11:45] } 11... b5 { [%clk 1:10:35] } 12. Nxb5 { [%clk 0:51:53] } 12... cxb5 { [%clk 1:10:35] } 13. Bxb5 { [%clk 0:52:20] } 13... Bc7 { [%clk 1:02:49] } 14. Bxf6 { [%clk 0:34:17] } 14... gxf6 { [%clk 1:03:15] } 15. Nh4 { [%clk 0:34:14] } 15... Rb8 { [%clk 0:54:05] } 16. Ba4 { [%clk 0:34:21] } 16... Rb6 { [%clk 0:52:28] } 17. Nf5 { [%clk 0:33:50] } 17... Ra6 { [%clk 0:52:53] } 18. Bb5 { [%clk 0:31:14] } 18... Ra5 { [%clk 0:51:29] } 19. Bc6 { [%clk 0:29:47] } 19... Ra6 { [%clk 0:47:21] } 20. Bb5 { [%clk 0:28:26] } 20... Ra5 { [%clk 0:47:48] } 21. Bc6 { [%clk 0:28:47] } 21... Ra6 { [%clk 0:44:40] } 22. Bb5 { [%clk 0:27:49] } 22... Ra5 { [%clk 0:45:09] } 23. Bc6 { [%clk 0:27:43] } 1/2-1/2

[Event "Reykjavik Open 2025"]
[Site "Reykjavik, Iceland"]
[Date "2025.04.10"]
[Round "2.15"]
[White "Papp, Gabor"]
[Black "Nissinen, Niilo Man"]
[Result "1/2-1/2"]
[WhiteElo "2502"]
[WhiteTitle "GM"]
[WhiteFideId "718602"]
[BlackElo "2268"]
[BlackTitle "CM"]
[BlackFideId "30950767"]
[TimeControl "90+30 +30 after 40 moves"]
[Variant "Standard"]
[ECO "B31"]
[Opening "Sicilian Defense: Nyezhmetdinov-Rossolimo Attack, Fianchetto Variation"]
[StudyName "Round 2"]
1. e4 { [%clk 1:30:56] } 1... c5 { [%clk 1:27:36] } 2. Nf3 { [%clk 1:31:21] } 2... Nc6 { [%clk 1:27:54] } 3. Bb5 { [%clk 1:31:41] } 3... g6 { [%clk 1:27:43] } 4. O-O { [%clk 1:31:47] } 4... Bg7 { [%clk 1:27:55] } 5. Bxc6 { [%clk 1:30:12] } 5... dxc6 { [%clk 1:24:33] } 6. d3 { [%clk 1:30:17] } 6... Nf6 { [%clk 1:24:06] } 7. Re1 { [%clk 1:30:11] } 7... O-O { [%clk 1:24:04] } 8. a4 { [%clk 1:30:07] } 8... a5 { [%clk 1:20:57] } 9. Nbd2 { [%clk 1:29:15] } 9... Ne8 { [%clk 1:09:05] } 10. e5 { [%clk 1:29:14] } 10... Nc7 { [%clk 1:07:27] } 11. b3 { [%clk 1:29:09] } 11... Bf5 { [%clk 1:02:18] } 12. Bb2 { [%clk 1:16:49] } 12... Qd7 { [%clk 0:57:55] } 13. Nc4 { [%clk 1:04:25] } 13... Nd5 { [%clk 0:56:50] } 14. Ng5 { [%clk 0:59:59] } 14... Be6 { [%clk 0:53:27] } 15. Qf3 { [%clk 0:55:32] } 15... h6 { [%clk 0:49:47] } 16. Nxe6 { [%clk 0:48:45] } 16... Qxe6 { [%clk 0:50:01] } 17. Re2 { [%clk 0:42:16] } 17... Rfd8 { [%clk 0:46:50] } 18. h4 { [%clk 0:39:39] } 18... b6 { [%clk 0:38:11] } 19. h5 { [%clk 0:38:03] } 19... g5 { [%clk 0:31:26] } 20. g3 { [%clk 0:35:04] } 20... Ra7 { [%clk 0:25:34] } 21. Kh2 { [%clk 0:35:01] } 21... Rad7 { [%clk 0:19:55] } 22. Qe4 { [%clk 0:32:26] } 22... Kh8 { [%clk 0:18:33] } 23. Rg1 { [%clk 0:30:31] } 23... b5 { [%clk 0:15:51] } 24. Nd2 { [%clk 0:30:13] } 24... Nb6 { [%clk 0:12:12] } 25. axb5 { [%clk 0:29:11] } 25... cxb5 { [%clk 0:12:30] } 26. f4 { [%clk 0:29:37] } 26... c4 { [%clk 0:09:44] } 27. f5 { [%clk 0:24:59] } 27... Qd5 { [%clk 0:10:05] } 28. dxc4 { [%clk 0:17:07] } 28... bxc4 { [%clk 0:09:03] } 29. Qxd5 { [%clk 0:10:10] } 29... Rxd5 { [%clk 0:09:26] } 30. Nxc4 { [%clk 0:10:37] } 30... Nxc4 { [%clk 0:09:41] } 31. bxc4 { [%clk 0:11:04] } 31... Rc5 { [%clk 0:05:49] } 32. f6 { [%clk 0:03:54] } 32... exf6 { [%clk 0:05:59] } 33. exf6 { [%clk 0:04:20] } 33... Bf8 { [%clk 0:06:23] } 34. Re4 { [%clk 0:04:47] } 34... Rdc8 { [%clk 0:05:23] } 35. Rd1 { [%clk 0:03:45] } 35... Rxc4 { [%clk 0:05:02] } 36. Rxc4 { [%clk 0:04:10] } 36... Rxc4 { [%clk 0:05:28] } 37. Rd8 { [%clk 0:04:03] } 37... Rxc2+ { [%clk 0:05:47] } 38. Kh3 { [%clk 0:02:36] } 38... Rxb2 { [%clk 0:06:09] } 39. Rxf8+ { [%clk 0:03:02] } 39... Kh7 { [%clk 0:06:34] } 40. Rxf7+ { [%clk 0:03:29] } 40... Kg8 { [%clk 0:05:44] } 41. Rg7+ { [%clk 0:03:28] } 41... Kh8 { [%clk 0:26:19] } 42. Rg6 { [%clk 0:33:47] } 42... Kh7 { [%clk 0:26:35] } 43. Rg7+ { [%clk 0:34:08] } 43... Kh8 { [%clk 0:26:58] } 44. Ra7 { [%clk 0:34:35] } 44... Rf2 { [%clk 0:27:01] } 45. Rxa5 { [%clk 0:35:00] } 45... Rxf6 { [%clk 0:27:24] } 46. Kg4 { [%clk 0:35:27] } 1/2-1/2